fUST/lending_fUST_20240620
["ID","MTS","AMOUNT","RATE_DAILY","PERIOD"]
[329963670,1718873446760,-12530.70687644,0.00027472,120]
[329963693,1718873557090,525.06832723,9.999e-05,2]
[329963694,1718873574092,1503.36238867,9.999e-05,2]
[329963695,1718873599234,1582.54864688,0.0001,2]
[329963698,1718874002830,1636.59362201,9.999e-05,7]
[329963706,1718874426146,-150.0,0.00019977,2]
[329963707,1718874435136,-164.82029354,0.00019977,2]
[329963708,1718874439114,-313.9903246,0.00019977,2]
[329963709,1718874442097,-205.0,0.00019977,2]
[329963710,1718874444096,-1143.79002439,0.00019977,2]
[329963711,1718874444117,-2192.85638978,0.00019977,2]
[329963712,1718874545108,-1357.00572902,0.00018899,2]
[329963713,1718874545130,-355.64123043,0.000189,2]
[329963714,1718874545151,-181.51786119,0.0002,2]
[329963715,1718874545170,-427.16819492,0.00020601,2]
[329963716,1718874545190,-163.700622,0.00021096,2]
[329963717,1718874545210,-163.700622,0.00021096,2]
[329963718,1718874545232,-215.808142,0.00023137,2]
[329963719,1718874545251,-355.64123043,0.000239,2]
[329963720,1718874545271,-4423.939058,0.00023988,2]
[329963721,1718874545289,-965.58419348,0.00025554,2]
[329963722,1718874545308,-1004.59426276,0.00025554,2]
[329963723,1718874545330,-316.77480476,0.00025555,2]
[329963724,1718874545350,-500.0,0.00025555,2]
[329963725,1718874545370,-500.0,0.00025555,2]
[329963726,1718874545390,-500.0,0.00025555,2]
[329963727,1718874545410,-512.20823738,0.00025555,2]
[329963728,1718874545430,-500.0,0.00025555,2]
[329963729,1718874545449,-63091.02891047,0.00025556,2]
[329963730,1718874545468,-900.00537487,0.00025738,2]
[329963731,1718874545488,-165.333688,0.00026076,2]
[329963732,1718874545507,-153.77,0.00026936,3]
[329963733,1718874545526,-768.9,0.00026936,3]
[329963734,1718874545544,-1637.3274154,0.00026944,7]
[329963735,1718874545567,-270.16174361,0.00026944,2]
[329963736,1718874545586,-1088.85682848,0.00026945,2]
[329963737,1718874545607,-29400.70592956,0.00026946,2]
[329963738,1718874545629,-525.87834751,0.0002725,2]
[329963739,1718874545650,-191.8060336,0.00027469,2]
[329963740,1718874545672,-258.35644608,0.00027469,2]
[329963741,1718874545691,-156.09516611,0.00027469,2]
[329963742,1718874545710,-164.98107495,0.00027469,2]
[329963743,1718874545729,-287.95947797,0.00027469,2]
[329963744,1718874545750,-277.24213866,0.00027469,2]
[329963745,1718874545769,-155.54849025,0.00027469,2]
[329963746,1718874545789,-252.36203016,0.00027469,2]
[329963747,1718874545808,-297.88995541,0.00027469,2]
[329963748,1718874545827,-156.56028287,0.00027469,2]
[329963749,1718874545846,-158.06373669,0.00027469,2]
[329963750,1718874545868,-705.77184118,0.00027469,2]
[329963751,1718874545887,-312.29306091,0.00027469,2]
[329963752,1718874545907,-155.69012832,0.00027469,2]
[329963753,1718874545926,-341.82435039,0.00027469,2]
[329963754,1718874545945,-155.35709596,0.00027469,2]
[329963755,1718874545967,-297.56749499,0.00027469,2]
[329963756,1718874545986,-193.21341165,0.00027469,2]
[329963757,1718874546006,-948.21053722,0.00027469,2]
[329963758,1718874546033,-586.72189482,0.00027469,2]
[329963759,1718874546053,-155.59801581,0.00027469,2]
[329963760,1718874546074,-236.21354409,0.00027469,2]
[329963761,1718874546094,-239.397701,0.00027469,2]
[329963762,1718874546119,-1020.68693728,0.00027469,2]
[329963763,1718874546139,-157.29837644,0.00027469,2]
[329963764,1718874546161,-253.91683289,0.00027469,2]
[329963765,1718874546182,-158.38870192,0.00027469,2]
[329963766,1718874546201,-352.92255667,0.00027469,2]
[329963767,1718874546223,-205.0,0.0002747,2]
[329963768,1718874546242,-158.16139992,0.0002747,2]
[329963769,1718874546263,-151.0,0.0002747,2]
[329963770,1718874546283,-151.0,0.0002747,2]
[329963771,1718874546305,-153.321953,0.0002747,2]
[329963772,1718874546328,-153.321953,0.0002747,2]
[329963773,1718874546349,-151.0,0.0002747,2]
[329963774,1718874546369,-151.0,0.0002747,2]
[329963775,1718874546391,-151.0,0.0002747,2]
[329963776,1718874546414,-154.103516,0.0002747,2]
[329963777,1718874546437,-154.103516,0.0002747,2]
[329963778,1718874546460,-151.0,0.0002747,2]
[329963779,1718874546481,-299.842575,0.0002747,2]
[329963780,1718874546503,-151.0,0.0002747,2]
[329963781,1718874546524,-349.790896,0.0002747,2]
[329963782,1718874546544,-349.790896,0.0002747,2]
[329963783,1718874546564,-657.80257,0.0002747,2]
[329963784,1718874546586,-151.0,0.0002747,2]
[329963785,1718874546610,-657.80257,0.0002747,2]
[329963786,1718874546631,-151.0,0.0002747,2]
[329963787,1718874546652,-151.0,0.0002747,2]
[329963788,1718874546672,-151.0,0.0002747,2]
[329963789,1718874546691,-151.0,0.0002747,2]
[329963790,1718874546711,-151.0,0.0002747,2]
[329963791,1718874546732,-264.262359,0.0002747,2]
[329963792,1718874546752,-264.262359,0.0002747,2]
[329963793,1718874546774,-288.294997,0.0002747,2]
[329963794,1718874546795,-288.294997,0.0002747,2]
[329963795,1718874546816,-151.0,0.0002747,2]
[329963796,1718874546837,-151.0,0.0002747,2]
[329963797,1718874546860,-151.0,0.0002747,2]
[329963798,1718874546883,-151.0,0.0002747,2]
[329963799,1718874546905,-14316.45305232,0.00027471,2]
[329963800,1718874547216,-157.75842322,0.000206,2]
[329963801,1718874547249,-8787.51083677,0.00027471,2]
[329963802,1718874553091,-2313.40470098,0.0002746,3]
[329963803,1718874562092,-284.850446,0.00026946,7]
[329963804,1718874562116,-1622.81247905,0.0002746,3]
[329963805,1718874565123,-284.850446,0.00026946,7]
[329963806,1718874565145,-1413.62281997,0.0002746,3]
[329963807,1718874565165,-5029.28,0.0002746,3]
[329963808,1718874565188,-205.96282619,0.00027469,2]
[329963809,1718874565211,-284.850446,0.0002747,2]
[329963810,1718874565232,-284.850446,0.0002747,2]
[329963811,1718874565253,-284.850446,0.0002747,2]
[329963812,1718874565274,-284.850446,0.0002747,2]
[329963813,1718874565295,-988.64139465,0.00027471,2]
[329963814,1718874565315,-762.71269111,0.00027472,2]
[329963815,1718874565336,-212.1452163,0.00027472,2]
[329963816,1718874565357,-225.30707158,0.00027472,2]
[329963817,1718874565378,-2019.44009824,0.00027472,14]
[329963818,1718874565401,-525.87834751,0.0002823,2]
[329963819,1718874565422,-525.87834751,0.00028519,2]
[329963820,1718874565443,-355.64123043,0.000289,2]
[329963821,1718874565463,-783.20721978,0.00028995,2]
[329963822,1718874565484,-525.87834751,0.00029151,2]
[329963823,1718874565505,-525.87834751,0.00029168,2]
[329963824,1718874565526,-525.87834751,0.00029619,2]
[329963825,1718874565546,-394.53105267,0.000297,30]
[329963826,1718874565566,-543.6,0.00030877,15]
[329963827,1718874565587,-525.87834751,0.00031966,7]
[329963828,1718874565608,-364.72365684,0.00032,4]
[329963829,1718874565628,-157.08323218,0.00032155,7]
[329963830,1718874565651,-525.87834751,0.00032867,7]
[329963831,1718874565671,-333.2024703,0.00032964,2]
[329963832,1718874565693,-525.87834751,0.00033252,7]
[329963833,1718874565714,-525.87834751,0.00034123,7]
[329963834,1718874565735,-525.87834751,0.00034689,7]
[329963835,1718874565756,-543.6,0.00034888,15]
[329963836,1718874565777,-154.79876161,0.00035,4]
[329963837,1718874565799,-284.850446,0.00035,2]
[329963838,1718874565819,-284.850446,0.00035,2]
[329963839,1718874565956,-525.87834751,0.00035163,7]
[329963840,1718874565979,-525.87834751,0.00035271,7]
[329963841,1718874566001,-525.87834751,0.00035335,7]
[329963842,1718874566025,-525.87834751,0.00035493,7]
[329963843,1718874566046,-152.84140391,0.00035794,7]
[329963844,1718874566068,-525.87834751,0.00037235,7]
[329963845,1718874566089,-525.87834751,0.00037535,7]
[329963846,1718874566111,-525.87834751,0.00037821,7]
[329963847,1718874566136,-1547.30677906,0.00038,120]
[329963848,1718874566156,-525.87834751,0.00038213,7]
[329963849,1718874566175,-525.87834751,0.00038884,7]
[329963850,1718874566195,-543.6,0.00038899,15]
[329963851,1718874566214,-865.45,0.00039,120]
[329963852,1718874566234,-525.87834751,0.0003945,7]
[329963853,1718874566253,-312.99543347,0.0004,120]
[329963854,1718874566273,-808.88059479,0.0004,2]
[329963855,1718874566293,-500.000001,0.0004,7]
[329963856,1718874566312,-72071.54074671,0.0004,2]
[329963857,1718874566331,-151.0,0.0004,2]
[329963858,1718874566350,-151.0,0.0004,2]
[329963859,1718874566371,-264.262359,0.0004,2]
[329963860,1718874566394,-264.262359,0.0004,2]
[329963861,1718874566416,-288.294997,0.0004,2]
[329963862,1718874566438,-288.294997,0.0004,2]
[329963863,1718874566459,-151.0,0.0004,2]
[329963864,1718874566479,-151.0,0.0004,2]
[329963865,1718874566500,-151.0,0.0004,2]
[329963866,1718874566521,-151.0,0.0004,2]
[329963867,1718874566542,-284.850446,0.0004,2]
[329963868,1718874566564,-151.75340781,0.00040396,30]
[329963869,1718874566585,-525.87834751,0.00040408,30]
[329963870,1718874566606,-525.87834751,0.00041051,30]
[329963871,1718874566626,-525.87834751,0.00041124,30]
[329963872,1718874566649,-150.78889555,0.00041549,2]
[329963873,1718874566669,-151.0,0.00041613,14]
[329963874,1718874566691,-153.321953,0.00041613,14]
[329963875,1718874566713,-153.321953,0.00041613,14]
[329963876,1718874566736,-151.0,0.00041613,14]
[329963877,1718874566764,-150.216,0.000418,2]
[329963878,1718874566785,-1751.0,0.000418,2]
[329963879,1718874566811,-154.103516,0.000418,14]
[329963880,1718874566835,-154.103516,0.000418,14]
[329963881,1718874566857,-152.422054,0.000418,14]
[329963882,1718874566880,-349.790896,0.000418,14]
[329963883,1718874566904,-349.790896,0.000418,14]
[329963884,1718874566927,-657.80257,0.000418,14]
[329963885,1718874566949,-151.0,0.000418,14]
[329963886,1718874566972,-657.80257,0.000418,14]
[329963887,1718874566993,-151.0,0.000418,14]
[329963888,1718874567015,-275.495149,0.000418,14]
[329963889,1718874567040,-151.0,0.00041844,14]
[329963890,1718874567060,-151.0,0.00041844,14]
[329963891,1718874567080,-151.0,0.00041858,14]
[329963892,1718874567100,-1208.127891,0.0004187,120]
[329963893,1718874567122,-284.850446,0.0004187,14]
[329963894,1718874567143,-151.0,0.0004187,14]
[329963895,1718874567166,-158.516826,0.00041962,14]
[329963896,1718874567187,-153.321953,0.00041962,14]
[329963897,1718874567209,-153.321953,0.00041962,14]
[329963898,1718874567229,-151.90066,0.00041962,14]
[329963899,1718874567249,-151.0,0.00042235,14]
[329963900,1718874567269,-227.760244,0.00042235,14]
[329963901,1718874567291,-264.262359,0.00042235,14]
[329963902,1718874567312,-264.262359,0.00042235,14]
[329963903,1718874567333,-288.294997,0.00042235,14]
[329963904,1718874567355,-288.294997,0.00042235,14]
[329963905,1718874567376,-151.0,0.00042235,14]
[329963906,1718874567397,-151.0,0.00042235,14]
[329963907,1718874567418,-151.0,0.00042235,14]
[329963908,1718874567440,-154.144717,0.00042235,14]
[329963909,1718874567461,-5273.39290881,0.00042428,2]
[329963910,1718874567482,-500.16463291,0.000425,30]
[329963911,1718874567501,-152.80588623,0.00042667,30]
[329963912,1718874567618,284.850446,0.0004,2]
[329963913,1718874567643,181.51786119,0.0002,2]
[329963914,1718874567667,283.91382314,0.00027468,2]
[329963915,1718874571092,-4191.06,0.0002746,3]
[329963916,1718874571113,-346.63337735,0.00027468,2]
[329963917,1718874571133,-284.850446,0.0004187,14]
[329963918,1718874571154,-153.321953,0.00042891,14]
[329963919,1718874571173,-153.321953,0.00042891,14]
[329963920,1718874571192,-151.0,0.00042891,14]
[329963921,1718874571211,-151.0,0.00042891,14]
[329963922,1718874571230,-154.103516,0.00042891,14]
[329963923,1718874571249,-154.103516,0.00042891,14]
[329963924,1718874571358,-349.790896,0.00042891,14]
[329963925,1718874571377,-349.790896,0.00042891,14]
[329963926,1718874571397,-657.80257,0.00042891,14]
[329963927,1718874571416,-151.0,0.00042891,14]
[329963928,1718874571435,-657.80257,0.00042891,14]
[329963929,1718874571453,-151.0,0.00042891,14]
[329963930,1718874571472,-284.850446,0.00042891,14]
[329963931,1718874571491,-147.40083699,0.00042891,14]
[329963932,1718874573135,-3.59916301,0.00042891,14]
[329963933,1718874573157,-146.40083699,0.00042891,14]
[329963976,1718874638536,-199.51846634,0.0002,2]
[329963978,1718874638546,-3492.55,0.0002746,3]
[329963980,1718874638555,-1379.12183584,0.00027469,2]
[329963982,1718874638565,-1977.60064253,0.00027469,2]
[329963984,1718874638574,-279.1342486,0.00027469,2]
[329963986,1718874638584,-844.32942161,0.0002747,120]
[329963988,1718874638595,-1264.77875999,0.0002747,120]
[329963989,1718874638607,-1551.13000235,0.0002747,120]
[329964002,1718874639259,-5669.34941903,0.0002747,120]
[329964003,1718874639271,-2500.0,0.0002747,120]
[329964040,1718874640687,-9509.84406463,0.0002747,120]
[329964058,1718874640855,-2939.24571115,0.0002747,120]
[329964061,1718874640867,-427.63664462,0.0002747,120]
[329964182,1718874739554,154.78330338,0.00012,2]
[329964187,1718875316433,1582.96582005,0.0001,2]
[329964188,1718875534123,-1800.0,0.00020995,7]
[329964189,1718875534144,-307.76245523,0.00020996,2]
[329964190,1718875534166,-163.700622,0.00021096,2]
[329964191,1718875534188,-163.700622,0.00021096,2]
[329964192,1718875534209,-142.78159495,0.000227,2]
[329964193,1718875594110,-92.84941076,0.000227,2]
[329964194,1718875594131,-65.68032358,0.00024341,2]
[329964195,1718875629822,-101.28310042,0.00024341,2]
[329964196,1718875629842,-170.573037,0.00025373,2]
[329964197,1718875629959,-5271.64490813,0.00025569,2]
[329964198,1718875639100,-2657.96367351,0.00025569,2]
[329964199,1718875639119,-1200.0,0.0002557,7]
[329964200,1718875639139,-300.0,0.00025571,2]
[329964201,1718875639159,-4063.8475839,0.00025572,2]
[329964202,1718875639179,-276.0330016,0.00025664,2]
[329964203,1718875639199,-893.23364416,0.00027335,2]
[329964204,1718875639219,-200.27088066,0.00027336,2]
[329964205,1718875639239,-200.27088064,0.00027339,2]
[329964206,1718875639258,-200.27088064,0.00027341,2]
[329964207,1718875639277,-200.27088064,0.00027344,2]
[329964208,1718875639297,-200.27088064,0.00027346,2]
[329964209,1718875639316,-174.88326183,0.000274,2]
[329964210,1718875639337,-350.0,0.00027433,2]
[329964211,1718875639357,-208.48082717,0.00027434,2]
[329964212,1718875639381,-9739.29312486,0.00027434,2]
[329964213,1718875652103,-1693.11395485,0.00027434,2]
[329964214,1718875750160,-775.35998602,0.00025334,2]
[329964215,1718875750182,-1000.0,0.00026033,7]
[329964216,1718875750206,-234.00971604,0.00026034,2]
[329964217,1718875750228,-234.00971604,0.0002647,2]
[329964218,1718875750249,-157.22761312,0.00027226,2]
[329964219,1718875750271,-574.16911146,0.00027434,2]
[329964220,1718875750291,-1248.64144168,0.00027434,2]
[329964221,1718875750311,-175.13238158,0.00027434,2]
[329964222,1718875750331,-762.71269111,0.00027434,2]
[329964223,1718875750352,-616.70011617,0.00027435,7]
[329964224,1718875750372,-433.61935413,0.00027435,2]
[329964225,1718875750393,-3422.39,0.00027436,3]
[329964226,1718875750420,-500.0,0.00027445,2]
[329964227,1718875750458,-500.0,0.00027445,2]
[329964228,1718875750489,-263.68097244,0.00027445,2]
[329964229,1718875750514,-154.54438824,0.00027445,2]
[329964230,1718875750536,-500.0,0.00027445,2]
[329964231,1718875750559,-500.0,0.00027445,2]
[329964232,1718875750581,-616.75806323,0.00027445,2]
[329964233,1718875750603,-208.12537661,0.00027445,2]
[329964234,1718875750624,-242.65197293,0.00027465,2]
[329964235,1718875750645,-190.87920002,0.00027465,2]
[329964236,1718875750666,-282.45177482,0.00027465,2]
[329964237,1718875750686,-155.29872316,0.00027466,2]
[329964238,1718875750710,-2644.3650935,0.00027466,2]
[329964239,1718875750731,-372.1820612,0.00027467,2]
[329964240,1718875750752,-412.98760283,0.00027467,2]
[329964241,1718875750772,-40085.85666381,0.00027467,2]
[329964242,1718875750793,-586.45391266,0.00027467,2]
[329964243,1718875750813,-155.3919917,0.00027467,2]
[329964244,1718875750833,-182.74752943,0.00027467,2]
[329964245,1718875750853,-156.49979751,0.00027467,2]
[329964246,1718875750879,-872.66798728,0.00027468,2]
[329964247,1718875750899,-155.54229581,0.00027469,2]
[329964248,1718875750920,-1477.66531436,0.00027469,2]
[329964249,1718875750942,-13241.25938881,0.00027469,2]
[329964250,1718875755105,-354.50961016,0.00027469,2]
[329964251,1718875756180,-3112.18907573,0.00027469,2]
[329964252,1718875756202,-5000.4880797,0.0002747,2]
[329964253,1718875756222,-181.51786119,0.0002747,2]
[329964254,1718875756368,-2729.27166779,0.0002747,2]
[329964255,1718875756390,-2080.75088761,0.0002747,2]
[329964256,1718875758258,-20.55955447,0.0002747,2]
[329964257,1718875758278,-234.00971604,0.00027499,2]
[329964258,1718875758300,-32.05529879,0.000275,30]
[329964259,1718875769115,-424.72625809,0.00027434,2]
[329964260,1718875806150,399.50059168,0.00021502,2]
[329964271,1718875832812,-4115.86880714,0.00021502,2]
[329964272,1718875832823,-2001.32100802,0.00021502,2]
[329964273,1718875832833,-5000.0,0.00021502,2]
[329964274,1718875832841,-3853.09343694,0.00021502,2]
[329964288,1718875838691,-521.0,0.00021501,7]
[329964290,1718875838700,-1146.90656306,0.00021502,2]
[329964292,1718875838709,-781.57943864,0.00027345,2]
[329964294,1718875838718,-246.8107828,0.00027434,2]
[329964296,1718875838727,-326.94861135,0.00027436,3]
[329964304,1718875838802,-382.70839159,0.00027436,3]
[329964342,1718875840984,-2975.38,0.00027436,3]
[329964344,1718875840996,-9876.57148616,0.00027446,120]
[329964358,1718875841119,-3302.07897482,0.00027446,120]
[329964644,1718875844134,-19148.3210841,0.00027446,120]
[329964726,1718875844921,-286.43836602,0.00027446,120]
[329964926,1718875846894,-3040.39570742,0.00027446,120]
[329964978,1718875847386,-487.1919645,0.00027446,120]
[329964981,1718875847407,-7115.62899351,0.00027446,120]
[329965631,1718875923387,292.80957049,0.0001,2]
[329965632,1718875923408,321.97413395,0.0001,2]
[329965633,1718875923433,1571.25959942,0.0001,2]
[329965642,1718876543313,521.0,9.999e-05,7]
[329965643,1718876544483,29177.0,0.00013,2]
[329965646,1718876838150,-521.0,0.00019999,7]
[329965647,1718876838172,-456.33822125,0.0002,2]
[329965648,1718876844109,-70.6359127,0.0002,2]
[329965649,1718876844131,-163.700622,0.00021096,2]
[329965650,1718876844151,-644.33723125,0.00022897,2]
[329965651,1718876844172,-167.111803,0.0002457,2]
[329965652,1718876844194,-703.9161957,0.00024785,2]
[329965653,1718876844215,-286.6245693,0.00025029,2]
[329965654,1718876844236,-567.1728751,0.00025217,2]
[329965655,1718876844256,-1166.79296119,0.00025369,2]
[329965656,1718876844276,-170.261386,0.00025573,2]
[329965657,1718876844296,-150.0,0.0002661,2]
[329965658,1718876844316,-86.93457185,0.00026923,2]
[329965659,1718876845098,-63.06542815,0.00026923,2]
[329965660,1718876845118,-162.19143128,0.00027126,2]
[329965661,1718876846100,-137.80856872,0.00027126,2]
[329965662,1718876846121,-67.19143128,0.00027127,2]
[329965663,1718876848137,-5206.20147753,0.00027127,2]
[329965664,1718876848158,-150.0,0.00027244,2]
[329965665,1718876848181,-450.73740721,0.0002733,2]
[329965666,1718876948249,-1357.00572902,0.00016,2]
[329965667,1718876948269,-777.86197413,0.00025027,2]
[329965668,1718876948288,-521.0,0.00026081,7]
[329965669,1718876948309,-183.96568676,0.00026082,2]
[329965670,1718876948328,-4930.84140727,0.00026369,2]
[329965671,1718876948348,-300.0,0.00026637,2]
[329965672,1718876948368,-4930.84140727,0.00026638,2]
[329965673,1718876948388,-153.14559113,0.00026927,2]
[329965674,1718876948408,-4930.84140727,0.00026995,2]
[329965675,1718876948428,-150.0,0.00027147,2]
[329965676,1718876948448,-153.14559113,0.00027213,2]
[329965677,1718876948468,-4930.84140727,0.00027292,2]
[329965678,1718876948487,-457.55514475,0.0002733,2]
[329965679,1718876948508,-181.51786119,0.0002733,2]
[329965680,1718876948527,-190.47084285,0.00027335,2]
[329965681,1718876948548,-2817.31136999,0.0002734,2]
[329965682,1718876948567,-4614.02985246,0.00027428,2]
[329965683,1718876948588,-15246.4,0.00027428,3]
[329965684,1718876948607,-7281.71670529,0.00027428,3]
[329965685,1718876952194,-1985.85162039,0.00027429,2]
[329965686,1718876952214,-292.80957049,0.00027432,2]
[329965687,1718876952235,-500.0,0.00027437,2]
[329965688,1718876952256,-451.80222372,0.00027437,2]
[329965689,1718876952276,-465.02717647,0.00027437,2]
[329965690,1718876952297,-2917.53511101,0.00027441,2]
[329965691,1718876952317,-726.30535293,0.00027444,7]
[329965692,1718876952339,-3800.41,0.00027445,30]
[329965693,1718876952362,-3253.1455082,0.00027445,30]
[329965694,1718876965133,-172.99174897,0.0002733,2]
[329965695,1718876965166,-11491.72,0.00027428,3]
[329965696,1718876965188,-521.0,0.00027437,7]
[329965697,1718876965209,-1355.18893054,0.00027437,2]
[329965698,1718876965230,-547.2644918,0.00027445,30]
[329965699,1718876965251,-3800.41,0.00027445,30]
[329965700,1718876965271,-3800.41,0.00027445,30]
[329965701,1718876965292,-3800.41,0.00027445,30]
[329965702,1718876965314,-3800.41,0.00027445,30]
[329965703,1718876965336,-3800.41,0.00027445,30]
[329965704,1718876965357,-3800.41,0.00027445,30]
[329965705,1718876965379,-3800.41,0.00027445,30]
[329965706,1718876965400,-3800.41,0.00027445,30]
[329965707,1718876965422,-3800.41,0.00027445,30]
[329965708,1718876965443,-3800.41,0.00027445,30]
[329965709,1718876965463,-3800.41,0.00027445,30]
[329965710,1718876965484,-3800.41,0.00027445,30]
[329965711,1718876965505,-3800.41,0.00027445,30]
[329965712,1718876965528,-3800.41,0.00027445,30]
[329965713,1718876965550,-394.93284428,0.00027445,30]
[329965714,1718876966114,-3405.47715572,0.00027445,30]
[329965715,1718876966136,-3800.41,0.00027445,30]
[329965716,1718876966159,-3800.41,0.00027445,30]
[329965717,1718876966180,-3800.41,0.00027445,30]
[329965718,1718876966202,-3800.41,0.00027445,30]
[329965719,1718876966224,-3800.41,0.00027445,30]
[329965720,1718876966246,-3800.41,0.00027445,30]
[329965721,1718876966267,-3800.62408614,0.00027445,30]
[329965722,1718876966287,-122.72800459,0.000275,30]
[329965723,1718876966308,-150.0,0.00027741,2]
[329965724,1718876966329,-737.77987095,0.00027875,2]
[329965725,1718876968112,-4193.06153632,0.00027875,2]
[329965726,1718876968134,-167.111803,0.00027919,2]
[329965727,1718876968154,-162.45482674,0.00027973,2]
[329965728,1718876968174,-267.89281478,0.00028,2]
[329965729,1718876968194,-154.89281334,0.00028,7]
[329965730,1718876968215,-157.29980359,0.00028014,2]
[329965731,1718876968235,-4930.84140732,0.00028072,2]
[329965732,1718876968256,-61402.67055864,0.0002877,2]
[329965733,1718877005473,300.0,0.00021497,2]
[329965771,1718877032005,-4487.74076114,0.00021497,2]
[329965773,1718877032016,-720.05265645,0.00027338,2]
[329965776,1718877032026,-5541.91,0.00027428,3]
[329965777,1718877032035,-8652.78,0.00027428,3]
[329965779,1718877032044,-7210.65,0.00027428,3]
[329965782,1718877032053,-521.0,0.00027437,7]
[329965784,1718877032063,-13052.26739512,0.00027438,120]
[329965786,1718877032074,-5592.20584802,0.00027438,120]
[329965887,1718877039647,-6008.87,0.00027428,3]
[329965889,1718877039657,-73.96335136,0.00027438,120]
[329965935,1718877040444,-10620.3097098,0.00027438,120]
[329965938,1718877040457,-295.83716802,0.00027438,120]
[329966170,1718877043052,-7160.0,0.00027438,120]
[329966215,1718877044489,-0.00139348,0.00027438,120]
[329966271,1718877046914,-5007.39,0.00027428,3]
[329966272,1718877046924,-49514.55597336,0.00027438,120]
[329966286,1718877419581,236.11,0.00014,2]
[329966288,1718877474939,1283.10380491,0.0001,2]
[329966291,1718878037158,-521.0,0.00021095,7]
[329966292,1718878037184,-163.700622,0.00021096,2]
[329966293,1718878037205,-192.374932,0.00025519,2]
[329966294,1718878037225,-161.53243053,0.00025551,2]
[329966295,1718878037247,-152.83968911,0.00026308,2]
[329966296,1718878037269,-568.57464942,0.0002667,2]
[329966297,1718878037289,-153.71107385,0.00027092,2]
[329966298,1718878037308,-155.0,0.0002725,14]
[329966299,1718878037329,-720.6626195,0.00027405,3]
[329966300,1718878050112,-161.53243053,0.0002639,2]
[329966301,1718878050134,-3333.50268556,0.00027405,3]
[329966302,1718878053112,-205.0,0.00027405,3]
[329966303,1718878145177,-521.0,0.00025204,7]
[329966304,1718878145202,-379.04976628,0.00025305,2]
[329966305,1718878145224,-318.6149584,0.00026255,2]
[329966306,1718878145247,-183.18878984,0.00026574,2]
[329966307,1718878145268,-183.18878984,0.0002693,2]
[329966308,1718878145290,-20613.73684075,0.00027,10]
[329966309,1718878145311,-630.04607435,0.00027315,2]
[329966310,1718878145332,-3073.55,0.00027405,3]
[329966311,1718878145354,-181.51786119,0.00027405,2]
[329966312,1718878145381,-300.0,0.00027405,2]
[329966313,1718878145402,-2234.26,0.00027406,3]
[329966314,1718878145422,-3344.69,0.00027406,3]
[329966315,1718878145442,-2787.24,0.00027406,3]
[329966316,1718878145462,-500.0,0.00027412,2]
[329966317,1718878145484,-500.0,0.00027412,2]
[329966318,1718878145504,-500.0,0.00027412,2]
[329966319,1718878145523,-500.0,0.00027412,2]
[329966320,1718878145544,-500.0,0.00027412,2]
[329966321,1718878145564,-650.0,0.00027412,2]
[329966322,1718878145586,-1348.79002439,0.00027413,2]
[329966323,1718878145613,-2192.85638978,0.00027413,2]
[329966324,1718878145635,-2477.72614275,0.00027413,2]
[329966325,1718878145659,-154.86644948,0.00027413,2]
[329966326,1718878145679,-283.91382314,0.00027413,2]
[329966327,1718878145699,-500.0,0.00027414,2]
[329966328,1718878145721,-338.63724664,0.00027414,2]
[329966329,1718878145743,-382.41832912,0.00027414,2]
[329966330,1718878145765,-500.0,0.00027415,10]
[329966331,1718878145788,-219.29229276,0.00027435,2]
[329966332,1718878145809,-40857.00789655,0.00027436,2]
[329966333,1718878145831,-290.57647375,0.00027436,30]
[329966334,1718878145852,-225.20664728,0.00027438,2]
[329966335,1718878145876,-155.03628236,0.000275,30]
[329966336,1718878145896,-268.25326368,0.00028,2]
[329966337,1718878145918,-161.53243053,0.00028077,2]
[329966338,1718878145941,-5273.39290881,0.00028674,2]
[329966339,1718878145962,-36916.85257353,0.0002877,2]
[329966340,1718878151126,-1887.36290895,0.00027406,3]